[Event "Tournoi de MI Clichy 92 2022"]
[Site "Clichy, France"]
[Date "2022.02.22"]
[Round "4.5"]
[White "Soham Das"]
[Black "Petrov, Martin"]
[Result "0-1"]
[TimeControl "1H40 40 moves plus 30 minutes + 30 seconds from move one"]
[WhiteElo "2378"]
[BlackElo "2547"]

1. e4 {[%clk 01:28:18]} {[%emt 00:02:42]} c5 {[%clk 01:30:37]} {[%emt
00:00:23]} 2. Nf3 {[%clk 01:28:35]} {[%emt 00:00:13]} d6 {[%clk 01:30:22]}
{[%emt 00:00:45]} 3. d4 {[%clk 01:29:00]} {[%emt 00:00:05]} cxd4 {[%clk
01:30:49]} {[%emt 00:00:04]} 4. Nxd4 {[%clk 01:29:27]} {[%emt 00:00:03]} Nf6
{[%clk 01:31:13]} {[%emt 00:00:05]} 5. Nc3 {[%clk 01:29:54]} {[%emt 00:00:03]}
g6 {[%clk 01:30:56]} {[%emt 00:00:48]} 6. Be3 {[%clk 01:27:22]} {[%emt
00:03:01]} Bg7 {[%clk 01:31:20]} {[%emt 00:00:06]} 7. Be2 {[%clk 01:27:13]}
{[%emt 00:00:39]} O-O {[%clk 01:31:14]} {[%emt 00:00:36]} 8. Qd2 {[%clk
01:27:42]} {[%emt 00:00:02]} Nc6 {[%clk 01:26:09]} {[%emt 00:05:35]} 9. O-O-O
{[%clk 01:24:08]} {[%emt 00:04:03]} Ng4 {[%clk 01:04:28]} {[%emt 00:22:12]} 10.
Bxg4 {[%clk 01:24:07]} {[%emt 00:00:30]} Bxg4 {[%clk 01:04:55]} {[%emt
00:00:04]} 11. f3 {[%clk 01:24:33]} {[%emt 00:00:04]} Be6 {[%clk 01:05:07]}
{[%emt 00:00:17]} 12. Kb1 {[%clk 01:22:52]} {[%emt 00:02:11]} Qa5 {[%clk
00:55:15]} {[%emt 00:10:22]} 13. Nd5 {[%clk 01:13:03]} {[%emt 00:10:19]} Bxd5
{[%clk 00:50:13]} {[%emt 00:05:33]} 14. Qxa5 {[%clk 01:13:18]} {[%emt
00:00:15]} Nxa5 {[%clk 00:50:39]} {[%emt 00:00:03]} 15. exd5 {[%clk 01:13:04]}
{[%emt 00:00:45]} Nc4 {[%clk 00:49:58]} {[%emt 00:01:11]} 16. Bg5 {[%clk
01:05:19]} {[%emt 00:08:14]} Rfe8 {[%clk 00:47:48]} {[%emt 00:02:42]} 17. Rhe1
{[%clk 01:05:43]} {[%emt 00:00:05]} Kf8 {[%clk 00:47:26]} {[%emt 00:00:51]} 18.
Re4 {[%clk 00:43:15]} {[%emt 00:22:57]} h6 {[%clk 00:46:12]} {[%emt 00:01:46]}
19. Bc1 {[%clk 00:36:35]} {[%emt 00:07:09]} Nb6 {[%clk 00:46:36]} {[%emt
00:00:06]} 20. Nb5 {[%clk 00:22:15]} {[%emt 00:14:51]} Rec8 {[%clk 00:45:59]}
{[%emt 00:01:07]} 21. Be3 {[%clk 00:21:10]} {[%emt 00:01:35]} Nc4 {[%clk
00:39:11]} {[%emt 00:07:19]} 22. Bd4 {[%clk 00:17:50]} {[%emt 00:03:50]} Bxd4
{[%clk 00:36:10]} {[%emt 00:03:30]} 23. Nxd4 {[%clk 00:04:31]} {[%emt
00:13:49]} Nb6 {[%clk 00:34:03]} {[%emt 00:02:38]} 24. Nb3 {[%clk 00:02:22]}
{[%emt 00:02:38]} Rc7 {[%clk 00:32:27]} {[%emt 00:02:05]} 25. Na5 {[%clk
00:02:14]} {[%emt 00:00:39]} Rac8 {[%clk 00:30:59]} {[%emt 00:01:58]} 26. Rd2
{[%clk 00:01:54]} {[%emt 00:00:49]} Rc5 {[%clk 00:26:24]} {[%emt 00:05:06]} 27.
Nxb7 {[%clk 00:01:43]} {[%emt 00:00:41]} Nc4 {[%clk 00:26:46]} {[%emt
00:00:08]} 28. Rdd4 {[%clk 00:01:52]} {[%emt 00:00:21]} R5c7 {[%clk 00:27:02]}
{[%emt 00:00:14]} 29. Nd8 {[%clk 00:01:43]} {[%emt 00:00:39]} Na5 {[%clk
00:21:49]} {[%emt 00:05:43]} 30. Nc6 {[%clk 00:01:37]} {[%emt 00:00:36]} Nxc6
{[%clk 00:22:13]} {[%emt 00:00:06]} 31. dxc6 {[%clk 00:02:04]} {[%emt
00:00:03]} Rxc6 {[%clk 00:22:40]} {[%emt 00:00:03]} 32. c3 {[%clk 00:02:09]}
{[%emt 00:00:25]} f5 {[%clk 00:19:37]} {[%emt 00:03:33]} 33. Rh4 {[%clk
00:02:01]} {[%emt 00:00:37]} Rb8 {[%clk 00:16:49]} {[%emt 00:03:18]} 34. Rb4
{[%clk 00:01:49]} {[%emt 00:00:42]} Rxb4 {[%clk 00:15:30]} {[%emt 00:01:50]} 35.
Rxb4 {[%clk 00:02:15]} {[%emt 00:00:04]} Rc7 {[%clk 00:15:52]} {[%emt
00:00:08]} 36. Rb8+ {[%clk 00:01:20]} {[%emt 00:01:25]} Kf7 {[%clk 00:16:01]}
{[%emt 00:00:21]} 37. Kc2 {[%clk 00:01:45]} {[%emt 00:00:04]} Rc5 {[%clk
00:11:25]} {[%emt 00:05:06]} 38. Rb7 {[%clk 00:01:00]} {[%emt 00:01:15]} Ra5
{[%clk 00:11:22]} {[%emt 00:00:33]} 39. a3 {[%clk 00:01:10]} {[%emt 00:00:20]}
f4 {[%clk 00:10:40]} {[%emt 00:01:12]} 40. Rb4 {[%clk 00:01:06]} {[%emt
00:00:35]} g5 {[%clk 00:10:17]} {[%emt 00:00:53]} 41. Rb7 {[%clk 00:22:10]}
{[%emt 00:09:26]} h5 {[%clk 00:34:40]} {[%emt 00:06:07]} 42. c4 {[%clk
00:21:01]} {[%emt 00:01:39]} a6 {[%clk 00:30:49]} {[%emt 00:04:21]} 43. Ra7
{[%clk 00:17:06]} {[%emt 00:04:26]} g4 {[%clk 00:28:43]} {[%emt 00:02:36]} 44.
Kd3 {[%clk 00:16:25]} {[%emt 00:01:11]} Re5 {[%clk 00:28:20]} {[%emt 00:00:53]}
45. Rxa6 {[%clk 00:12:36]} {[%emt 00:04:20]} Re3+ {[%clk 00:28:41]} {[%emt
00:00:08]} 46. Kd2 {[%clk 00:12:44]} {[%emt 00:00:21]} Rb3 {[%clk 00:23:52]}
{[%emt 00:05:20]} 47. Kc2 {[%clk 00:09:55]} {[%emt 00:03:19]} gxf3 {[%clk
00:24:13]} {[%emt 00:00:09]} 48. gxf3 {[%clk 00:10:23]} {[%emt 00:00:03]} Rxf3
{[%clk 00:24:39]} {[%emt 00:00:04]} 49. Ra5 {[%clk 00:10:49]} {[%emt 00:00:03]}
e5 {[%clk 00:23:18]} {[%emt 00:01:51]} 50. Rd5 {[%clk 00:11:14]} {[%emt
00:00:06]} Ke6 {[%clk 00:23:08]} {[%emt 00:00:40]} 51. a4 {[%clk 00:04:48]}
{[%emt 00:06:56]} e4 {[%clk 00:20:57]} {[%emt 00:02:40]} 52. a5 {[%clk
00:00:37]} {[%emt 00:04:41]} Rf2+ {[%clk 00:21:03]} {[%emt 00:00:24]} 53. Kc1
{[%clk 00:00:32]} {[%emt 00:00:36]} e3 {[%clk 00:20:11]} {[%emt 00:01:21]} 54.
Rd1 {[%clk 00:00:46]} {[%emt 00:00:16]} Kd7 {[%clk 00:13:17]} {[%emt 00:07:25]}
55. c5 {[%clk 00:00:41]} {[%emt 00:00:36]} e2 {[%clk 00:13:30]} {[%emt
00:00:17]} 56. Rxd6+ {[%clk 00:00:31]} {[%emt 00:00:39]} Ke7 {[%clk 00:13:55]}
{[%emt 00:00:05]} 57. Kd2 {[%clk 00:00:39]} {[%emt 00:00:23]} f3 {[%clk
00:14:20]} {[%emt 00:00:04]} 58. Rd3 {[%clk 00:00:31]} {[%emt 00:00:38]} Rf1
{[%clk 00:14:44]} {[%emt 00:00:06]} 59. Re3+ {[%clk 00:00:31]} {[%emt
00:00:31]} Kd7 {[%clk 00:15:09]} {[%emt 00:00:05]} 0-1

[ePGN "0.1;DGT LiveChess/2.2.5"]

[Event "Tournoi de MI Clichy 92 2022"]
[Site "Clichy, France"]
[Date "2022.02.23"]
[Round "5.1"]
[White "Benmesbah, Natacha"]
[Black "Sorbe, Stephane"]
[Result "0-1"]
[TimeControl "1H40 40 moves plus 30 minutes + 30 seconds from move one"]
[WhiteElo "2221"]
[BlackElo "2326"]

1. e4 {[%clk 01:30:42]} {[%emt 00:00:17]} c6 {[%clk 01:30:40]} {[%emt
00:00:20]} 2. d4 {[%clk 01:30:58]} {[%emt 00:00:14]} d5 {[%clk 01:30:57]}
{[%emt 00:00:13]} 3. e5 {[%clk 01:31:24]} {[%emt 00:00:05]} Bf5 {[%clk
01:30:51]} {[%emt 00:00:34]} 4. Nd2 {[%clk 01:31:31]} {[%emt 00:00:23]} e6
{[%clk 01:30:12]} {[%emt 00:01:09]} 5. Nb3 {[%clk 01:31:50]} {[%emt 00:00:12]}
Nd7 {[%clk 01:28:40]} {[%emt 00:02:03]} 6. Nf3 {[%clk 01:31:04]} {[%emt
00:01:16]} h6 {[%clk 01:25:46]} {[%emt 00:03:24]} 7. Be2 {[%clk 01:24:42]}
{[%emt 00:06:52]} g5 {[%clk 01:23:34]} {[%emt 00:02:41]} 8. Bd2 {[%clk
01:17:10]} {[%emt 00:08:03]} Ne7 {[%clk 01:11:30]} {[%emt 00:12:34]} 9. O-O
{[%clk 01:10:21]} {[%emt 00:07:18]} Bg7 {[%clk 01:05:11]} {[%emt 00:06:48]} 10.
a4 {[%clk 01:03:49]} {[%emt 00:07:03]} a5 {[%clk 01:01:13]} {[%emt 00:04:28]}
11. c3 {[%clk 00:56:38]} {[%emt 00:07:42]} Qc7 {[%clk 00:38:10]} {[%emt
00:23:33]} 12. Ne1 {[%clk 00:53:23]} {[%emt 00:03:44]} c5 {[%clk 00:35:51]}
{[%emt 00:02:49]} 13. Nxc5 {[%clk 00:35:22]} {[%emt 00:18:31]} Nxc5 {[%clk
00:33:39]} {[%emt 00:02:43]} 14. dxc5 {[%clk 00:35:48]} {[%emt 00:00:04]} Qxc5
{[%clk 00:22:28]} {[%emt 00:11:40]} 15. Bb5+ {[%clk 00:28:22]} {[%emt
00:07:56]} Kf8 {[%clk 00:22:47]} {[%emt 00:00:11]} 16. Nf3 {[%clk 00:24:11]}
{[%emt 00:04:42]} Qc7 {[%clk 00:19:44]} {[%emt 00:03:33]} 17. Qe2 {[%clk
00:22:52]} {[%emt 00:01:48]} g4 {[%clk 00:17:27]} {[%emt 00:02:47]} 18. Nd4
{[%clk 00:22:39]} {[%emt 00:00:43]} Bxe5 {[%clk 00:16:08]} {[%emt 00:01:50]} 19.
g3 {[%clk 00:21:58]} {[%emt 00:01:11]} h5 {[%clk 00:08:17]} {[%emt 00:08:20]}
20. Rae1 {[%clk 00:21:58]} {[%emt 00:00:30]} Bxd4 {[%clk 00:06:57]} {[%emt
00:01:50]} 21. cxd4 {[%clk 00:22:25]} {[%emt 00:00:03]} Qc2 {[%clk 00:05:28]}
{[%emt 00:01:59]} 22. Qe5 {[%clk 00:19:38]} {[%emt 00:03:17]} Ng6 {[%clk
00:05:38]} {[%emt 00:00:20]} 23. Qd6+ {[%clk 00:19:52]} {[%emt 00:00:16]} Kg7
{[%clk 00:05:19]} {[%emt 00:00:48]} 24. Re2 {[%clk 00:18:11]} {[%emt 00:02:12]}
Rad8 {[%clk 00:03:29]} {[%emt 00:02:20]} 25. Qa3 {[%clk 00:16:07]} {[%emt
00:02:35]} Qc7 {[%clk 00:03:55]} {[%emt 00:00:04]} 26. Rc1 {[%clk 00:16:25]}
{[%emt 00:00:11]} Qb6 {[%clk 00:04:15]} {[%emt 00:00:10]} 27. Rc5 {[%clk
00:14:28]} {[%emt 00:02:27]} Qd6 {[%clk 00:03:43]} {[%emt 00:01:01]} 28. Qc3
{[%clk 00:13:13]} {[%emt 00:01:45]} b6 {[%clk 00:03:37]} {[%emt 00:00:36]} 29.
Rc7 {[%clk 00:11:19]} {[%emt 00:02:24]} h4 {[%clk 00:02:17]} {[%emt 00:01:51]}
30. Bg5 {[%clk 00:11:09]} {[%emt 00:00:39]} Rb8 {[%clk 00:01:49]} {[%emt
00:00:58]} 31. Rd7 {[%clk 00:08:15]} {[%emt 00:03:25]} Qf8 {[%clk 00:01:32]}
{[%emt 00:00:47]} 32. Rc7 {[%clk 00:06:24]} {[%emt 00:02:21]} Rh5 {[%clk
00:01:39]} {[%emt 00:00:22]} 33. gxh4 {[%clk 00:05:28]} {[%emt 00:01:26]} Nxh4
{[%clk 00:00:59]} {[%emt 00:01:11]} 34. Bxh4 {[%clk 00:05:50]} {[%emt
00:00:08]} Rxh4 {[%clk 00:01:26]} {[%emt 00:00:03]} 35. Qg3 {[%clk 00:06:15]}
{[%emt 00:00:04]} Qh8 {[%clk 00:01:14]} {[%emt 00:00:41]} 36. Qf4 {[%clk
00:04:36]} {[%emt 00:02:09]} Kg6 {[%clk 00:01:07]} {[%emt 00:00:38]} 37. Bd3
{[%clk 00:02:01]} {[%emt 00:03:05]} Qf6 {[%clk 00:00:41]} {[%emt 00:00:56]} 38.
Bxf5+ {[%clk 00:00:39]} {[%emt 00:01:52]} Qxf5 {[%clk 00:00:46]} {[%emt
00:00:24]} 39. Qxf5+ {[%clk 00:00:36]} {[%emt 00:00:33]} exf5 {[%clk 00:01:02]}
{[%emt 00:00:14]} 40. Ree7 {[%clk 00:00:45]} {[%emt 00:00:21]} Rf8 {[%clk
00:00:32]} {[%emt 00:01:00]} 41. Rb7 {[%clk 00:28:54]} {[%emt 00:02:21]} f4
{[%clk 00:25:43]} {[%emt 00:05:19]} 42. Rxb6+ {[%clk 00:28:23]} {[%emt
00:01:01]} f6 {[%clk 00:23:49]} {[%emt 00:02:23]} 43. f3 {[%clk 00:22:23]}
{[%emt 00:06:30]} gxf3 {[%clk 00:13:34]} {[%emt 00:10:45]} 44. Rb5 {[%clk
00:16:12]} {[%emt 00:06:42]} Rfh8 {[%clk 00:08:28]} {[%emt 00:05:34]} 45. Kf2
{[%clk 00:16:30]} {[%emt 00:00:12]} Rxh2+ {[%clk 00:08:47]} {[%emt 00:00:12]}
46. Kxf3 {[%clk 00:16:57]} {[%emt 00:00:03]} R8h5 {[%clk 00:07:41]} {[%emt
00:01:36]} 47. Rd7 {[%clk 00:10:24]} {[%emt 00:07:03]} R2h3+ {[%clk 00:06:19]}
{[%emt 00:01:52]} 48. Kf2 {[%clk 00:10:20]} {[%emt 00:00:34]} Rd3 {[%clk
00:06:31]} {[%emt 00:00:17]} 49. Rdxd5 {[%clk 00:10:21]} {[%emt 00:00:29]} Rh2+
{[%clk 00:06:46]} {[%emt 00:00:15]} 50. Ke1 {[%clk 00:10:43]} {[%emt 00:00:09]}
f3 {[%clk 00:06:34]} {[%emt 00:00:42]} 51. Rf5 {[%clk 00:10:14]} {[%emt
00:00:59]} Re2+ {[%clk 00:06:54]} {[%emt 00:00:09]} 0-1

[Event "Tournoi de MI Clichy 92 2022"]
[Site "Clichy, France"]
[Date "2022.02.23"]
[Round "5.5"]
[White "Droin, Augustin"]
[Black "Degardin, Sylvain"]
[Result "1-0"]
[TimeControl "1H40 40 moves plus 30 minutes + 30 seconds from move one"]
[WhiteElo "2365"]
[BlackElo "2288"]

1. e4 {[%clk 01:30:56]} {[%emt 00:00:04]} e5 {[%clk 01:30:38]} {[%emt
00:00:21]} 2. Nf3 {[%clk 01:31:23]} {[%emt 00:00:05]} Nc6 {[%clk 01:30:56]}
{[%emt 00:00:11]} 3. Bc4 {[%clk 01:31:46]} {[%emt 00:00:09]} Bc5 {[%clk
01:31:03]} {[%emt 00:00:21]} 4. c3 {[%clk 01:32:12]} {[%emt 00:00:05]} Nf6
{[%clk 01:31:14]} {[%emt 00:00:19]} 5. d3 {[%clk 01:32:39]} {[%emt 00:00:04]}
d6 {[%clk 01:29:30]} {[%emt 00:02:14]} 6. O-O {[%clk 01:33:04]} {[%emt
00:00:05]} a5 {[%clk 01:26:59]} {[%emt 00:03:00]} 7. Re1 {[%clk 01:28:26]}
{[%emt 00:05:08]} h6 {[%clk 01:25:18]} {[%emt 00:02:10]} 8. d4 {[%clk
01:22:33]} {[%emt 00:06:24]} Bb6 {[%clk 01:19:47]} {[%emt 00:06:01]} 9. h3
{[%clk 01:14:41]} {[%emt 00:08:22]} O-O {[%clk 01:17:49]} {[%emt 00:02:26]} 10.
Bb5 {[%clk 01:04:57]} {[%emt 00:10:16]} Ne7 {[%clk 01:00:34]} {[%emt 00:17:45]}
11. Nbd2 {[%clk 00:49:43]} {[%emt 00:15:44]} c6 {[%clk 00:59:04]} {[%emt
00:01:59]} 12. Bd3 {[%clk 00:49:56]} {[%emt 00:00:18]} Ng6 {[%clk 00:58:19]}
{[%emt 00:01:14]} 13. Nf1 {[%clk 00:49:29]} {[%emt 00:00:58]} Nh5 {[%clk
00:50:50]} {[%emt 00:07:58]} 14. Nxe5 {[%clk 00:38:34]} {[%emt 00:11:26]} Nxe5
{[%clk 00:41:47]} {[%emt 00:09:33]} 15. dxe5 {[%clk 00:38:39]} {[%emt
00:00:26]} Qh4 {[%clk 00:39:57]} {[%emt 00:02:18]} 16. Be3 {[%clk 00:34:56]}
{[%emt 00:04:13]} Bxe3 {[%clk 00:38:40]} {[%emt 00:01:47]} 17. Nxe3 {[%clk
00:35:06]} {[%emt 00:00:21]} dxe5 {[%clk 00:38:28]} {[%emt 00:00:41]} 18. g3
{[%clk 00:26:11]} {[%emt 00:09:26]} Nxg3 {[%clk 00:31:50]} {[%emt 00:07:08]} 19.
Ng2 {[%clk 00:26:03]} {[%emt 00:00:38]} Qxh3 {[%clk 00:30:46]} {[%emt
00:01:33]} 20. fxg3 {[%clk 00:26:28]} {[%emt 00:00:05]} Qxg3 {[%clk 00:29:08]}
{[%emt 00:02:08]} 21. Re3 {[%clk 00:26:29]} {[%emt 00:00:30]} Qg5 {[%clk
00:26:39]} {[%emt 00:02:58]} 22. Qe1 {[%clk 00:25:32]} {[%emt 00:01:29]} Be6
{[%clk 00:25:47]} {[%emt 00:01:21]} 23. Rg3 {[%clk 00:25:31]} {[%emt 00:00:32]}
Qe7 {[%clk 00:23:22]} {[%emt 00:02:54]} 24. Ne3 {[%clk 00:22:58]} {[%emt
00:03:04]} Rfd8 {[%clk 00:17:20]} {[%emt 00:06:31]} 25. Nf5 {[%clk 00:21:15]}
{[%emt 00:02:13]} Qc5+ {[%clk 00:13:08]} {[%emt 00:04:41]} 26. Kh2 {[%clk
00:19:32]} {[%emt 00:02:14]} Bxf5 {[%clk 00:08:27]} {[%emt 00:05:12]} 27. exf5
{[%clk 00:19:57]} {[%emt 00:00:05]} Rd6 {[%clk 00:01:43]} {[%emt 00:07:14]} 28.
Qg1 {[%clk 00:19:37]} {[%emt 00:00:50]} Qxg1+ {[%clk 00:01:47]} {[%emt
00:00:26]} 29. Raxg1 {[%clk 00:19:56]} {[%emt 00:00:10]} Kh8 {[%clk 00:01:58]}
{[%emt 00:00:19]} 30. Bc4 {[%clk 00:19:44]} {[%emt 00:00:43]} Rf6 {[%clk
00:00:41]} {[%emt 00:01:47]} 31. Rxg7 {[%clk 00:19:42]} {[%emt 00:00:32]} Rd8
{[%clk 00:00:31]} {[%emt 00:00:40]} 32. Rxf7 {[%clk 00:19:53]} {[%emt
00:00:19]} Rd2+ {[%clk 00:00:32]} {[%emt 00:00:29]} 33. Rg2 {[%clk 00:19:48]}
{[%emt 00:00:36]} 1-0

[Event "Tournoi de MI Clichy 92 2022"]
[Site "Clichy, France"]
[Date "2022.02.23"]
[Round "5.2"]
[White "Valles Moreno, Ivan"]
[Black "Onkoud, Abdelaziz"]
[Result "1-0"]
[TimeControl "1H40 40 moves plus 30 minutes + 30 seconds from move one"]
[WhiteElo "2393"]
[BlackElo "2317"]

1. Nf3 {[%clk 01:25:25]} {[%emt 00:05:33]} d6 {[%clk 01:26:16]} {[%emt
00:04:44]} 2. d4 {[%clk 01:25:37]} {[%emt 00:00:19]} Bg4 {[%clk 01:25:11]}
{[%emt 00:01:35]} 3. e4 {[%clk 01:25:58]} {[%emt 00:00:08]} Nf6 {[%clk
01:25:06]} {[%emt 00:00:36]} 4. Nc3 {[%clk 01:26:22]} {[%emt 00:00:06]} e6
{[%clk 01:25:07]} {[%emt 00:00:30]} 5. h3 {[%clk 01:25:52]} {[%emt 00:00:59]}
Bh5 {[%clk 01:24:22]} {[%emt 00:01:16]} 6. Qe2 {[%clk 01:20:12]} {[%emt
00:06:09]} a6 {[%clk 01:21:11]} {[%emt 00:03:42]} 7. g4 {[%clk 01:15:52]}
{[%emt 00:04:49]} Bg6 {[%clk 01:20:59]} {[%emt 00:00:43]} 8. h4 {[%clk
01:16:00]} {[%emt 00:00:22]} h5 {[%clk 01:20:48]} {[%emt 00:00:40]} 9. g5
{[%clk 01:16:22]} {[%emt 00:00:08]} Nfd7 {[%clk 01:20:23]} {[%emt 00:00:56]} 10.
Bh3 {[%clk 01:13:31]} {[%emt 00:03:22]} c5 {[%clk 01:09:27]} {[%emt 00:11:27]}
11. d5 {[%clk 00:49:25]} {[%emt 00:24:34]} e5 {[%clk 01:06:07]} {[%emt
00:03:51]} 12. a4 {[%clk 00:49:28]} {[%emt 00:00:27]} b6 {[%clk 01:04:05]}
{[%emt 00:02:33]} 13. Be3 {[%clk 00:45:27]} {[%emt 00:04:31]} Bh7 {[%clk
01:02:57]} {[%emt 00:01:38]} 14. Nd2 {[%clk 00:44:25]} {[%emt 00:01:31]} g6
{[%clk 01:00:06]} {[%emt 00:03:21]} 15. Rg1 {[%clk 00:42:57]} {[%emt 00:01:58]}
Bg7 {[%clk 00:58:58]} {[%emt 00:01:39]} 16. Nc4 {[%clk 00:32:11]} {[%emt
00:11:15]} Qc7 {[%clk 00:59:03]} {[%emt 00:00:26]} 17. f4 {[%clk 00:26:04]}
{[%emt 00:06:36]} exf4 {[%clk 00:58:14]} {[%emt 00:01:20]} 18. Bxf4 {[%clk
00:26:28]} {[%emt 00:00:06]} Ne5 {[%clk 00:58:29]} {[%emt 00:00:14]} 19. Bxe5
{[%clk 00:26:48]} {[%emt 00:00:10]} dxe5 {[%clk 00:55:26]} {[%emt 00:03:34]} 20.
d6 {[%clk 00:22:25]} {[%emt 00:04:53]} Qc6 {[%clk 00:47:59]} {[%emt 00:07:58]}
21. Nd5 {[%clk 00:21:19]} {[%emt 00:01:35]} Ra7 {[%clk 00:43:34]} {[%emt
00:04:56]} 22. Ncxb6 {[%clk 00:19:14]} {[%emt 00:02:34]} O-O {[%clk 00:37:31]}
{[%emt 00:06:33]} 23. Ne7+ {[%clk 00:13:32]} {[%emt 00:06:12]} Rxe7 {[%clk
00:37:23]} {[%emt 00:00:39]} 24. dxe7 {[%clk 00:13:56]} {[%emt 00:00:06]} Qxb6
{[%clk 00:37:35]} {[%emt 00:00:18]} 25. exf8=Q+ {[%clk 00:14:19]} {[%emt
00:00:07]} Bxf8 {[%clk 00:37:47]} {[%emt 00:00:18]} 26. c3 {[%clk 00:14:41]}
{[%emt 00:00:07]} 1-0

[Event "Tournoi de MI Clichy 92 2022"]
[Site "Clichy, France"]
[Date "2022.02.23"]
[Round "5.3"]
[White "Mekhane, Adam"]
[Black "Soham Das"]
[Result "1/2-1/2"]
[TimeControl "1H40 40 moves plus 30 minutes + 30 seconds from move one"]
[WhiteElo "2316"]
[BlackElo "2378"]

1. e4 {[%clk 01:30:59]} {[%emt 00:27:01]} c5 {[%clk 01:17:18]} {[%emt
00:13:42]} 2. Nf3 {[%clk 01:31:22]} {[%emt 00:00:07]} d6 {[%clk 01:17:45]}
{[%emt 00:00:04]} 3. d4 {[%clk 01:31:49]} {[%emt 00:00:03]} cxd4 {[%clk
01:18:10]} {[%emt 00:00:05]} 4. Nxd4 {[%clk 01:32:15]} {[%emt 00:00:03]} Nf6
{[%clk 01:18:37]} {[%emt 00:00:03]} 5. Nc3 {[%clk 01:32:40]} {[%emt 00:00:05]}
a6 {[%clk 01:19:05]} {[%emt 00:00:02]} 6. Be2 {[%clk 01:33:05]} {[%emt
00:00:04]} e5 {[%clk 01:19:09]} {[%emt 00:00:26]} 7. Nb3 {[%clk 01:33:31]}
{[%emt 00:00:04]} Be7 {[%clk 01:19:25]} {[%emt 00:00:14]} 8. O-O {[%clk
01:33:54]} {[%emt 00:00:06]} O-O {[%clk 01:19:23]} {[%emt 00:00:32]} 9. Qd3
{[%clk 01:34:19]} {[%emt 00:00:05]} Be6 {[%clk 01:18:56]} {[%emt 00:00:57]} 10.
Bd2 {[%clk 01:34:44]} {[%emt 00:00:06]} Nbd7 {[%clk 01:17:19]} {[%emt
00:02:08]} 11. Nd5 {[%emt 00:04:13]} Bxd5 {[%clk 01:12:15]} {[%emt 00:02:45]}
12. exd5 {[%clk 01:34:15]} {[%emt 00:00:06]} Nc5 {[%clk 01:12:42]} {[%emt
00:00:03]} 13. Nxc5 {[%clk 01:32:22]} {[%emt 00:02:20]} dxc5 {[%clk 01:11:54]}
{[%emt 00:01:20]} 14. c4 {[%clk 01:32:30]} {[%emt 00:00:22]} Qc7 {[%clk
00:53:12]} {[%emt 00:19:12]} 15. Bc3 {[%clk 01:21:03]} {[%emt 00:11:57]} Bd6
{[%clk 00:42:58]} {[%emt 00:10:44]} 16. Qf5 {[%clk 01:12:37]} {[%emt 00:08:55]}
Ne8 {[%clk 00:36:20]} {[%emt 00:07:09]} 17. Bd3 {[%clk 00:56:42]} {[%emt
00:16:25]} g6 {[%clk 00:36:43]} {[%emt 00:00:07]} 18. Qh3 {[%clk 00:55:42]}
{[%emt 00:01:29]} f5 {[%clk 00:36:01]} {[%emt 00:01:13]} 19. f3 {[%clk
00:50:14]} {[%emt 00:05:59]} Nf6 {[%clk 00:32:40]} {[%emt 00:03:51]} 20. Bc2
{[%clk 00:48:01]} {[%emt 00:02:44]} Rae8 {[%clk 00:24:32]} {[%emt 00:08:37]} 21.
Rae1 {[%clk 00:45:26]} {[%emt 00:03:05]} b5 {[%clk 00:10:21]} {[%emt 00:14:41]}
22. b3 {[%clk 00:45:29]} {[%emt 00:00:26]} Re7 {[%clk 00:09:44]} {[%emt
00:01:07]} 23. Qh4 {[%clk 00:36:24]} {[%emt 00:09:35]} Nh5 {[%clk 00:07:48]}
{[%emt 00:02:26]} 24. Kh1 {[%clk 00:34:35]} {[%emt 00:02:19]} Nf4 {[%clk
00:07:01]} {[%emt 00:01:16]} 25. a4 {[%clk 00:30:05]} {[%emt 00:05:00]} b4
{[%clk 00:07:26]} {[%emt 00:00:05]} 26. Bd2 {[%clk 00:26:02]} {[%emt 00:04:33]}
Ree8 {[%clk 00:05:57]} {[%emt 00:01:59]} 27. Qf2 {[%clk 00:19:54]} {[%emt
00:06:39]} Qg7 {[%clk 00:02:40]} {[%emt 00:03:47]} 28. Be3 {[%clk 00:17:30]}
{[%emt 00:02:53]} Qc7 {[%clk 00:02:31]} {[%emt 00:00:39]} 29. Qg1 {[%clk
00:16:54]} {[%emt 00:01:06]} Re7 {[%clk 00:01:28]} {[%emt 00:01:34]} 30. g3
{[%clk 00:14:51]} {[%emt 00:02:34]} Nh5 {[%clk 00:01:47]} {[%emt 00:00:10]} 31.
g4 {[%clk 00:15:03]} {[%emt 00:00:19]} fxg4 {[%clk 00:01:33]} {[%emt 00:00:45]}
32. fxg4 {[%clk 00:13:51]} {[%emt 00:01:41]} Rxf1 {[%clk 00:01:21]} {[%emt
00:00:42]} 33. Rxf1 {[%clk 00:14:05]} {[%emt 00:00:16]} Nf4 {[%clk 00:01:46]}
{[%emt 00:00:04]} 34. Be4 {[%clk 00:14:17]} {[%emt 00:00:18]} Rf7 {[%clk
00:01:28]} {[%emt 00:00:48]} 35. Qf2 {[%clk 00:07:41]} {[%emt 00:07:07]} Qe7
{[%clk 00:00:44]} {[%emt 00:01:14]} 36. h4 {[%clk 00:07:32]} {[%emt 00:00:39]}
a5 {[%clk 00:01:02]} {[%emt 00:00:12]} 37. Kh2 {[%clk 00:07:19]} {[%emt
00:00:42]} Rf8 {[%clk 00:00:40]} {[%emt 00:00:54]} 38. Qg3 {[%clk 00:04:35]}
{[%emt 00:03:13]} Ne2 {[%clk 00:00:42]} {[%emt 00:00:28]} 39. Rxf8+ {[%clk
00:04:01]} {[%emt 00:01:04]} Qxf8 {[%clk 00:01:08]} {[%emt 00:00:04]} 40. Qf2
{[%clk 00:02:48]} {[%emt 00:01:43]} Qxf2+ {[%clk 00:01:19]} {[%emt 00:00:19]}
41. Bxf2 {[%clk 00:03:10]} {[%emt 00:00:07]} 1/2-1/2